lending/lending_fUSD_20250122
["ID","MTS","AMOUNT","RATE_DAILY","PERIOD"]
[349956625,1737535854960,-1192.26,0.00019994,2]
[349956626,1737535854971,-383.84093751,0.00019994,2]
[349956627,1737535854980,-500.0,0.00019994,2]
[349956628,1737535854989,-500.0,0.00019994,2]
[349956629,1737535854999,-1613.65,0.00019994,2]
[349956630,1737535855012,-840.93,0.00019994,2]
[349956631,1737535855022,-500.0,0.00019994,2]
[349956632,1737535855031,-1815.41,0.00019994,2]
[349956633,1737535855040,-627.34,0.00019994,2]
[349956634,1737535855050,-552.73,0.00019994,2]
[349956635,1737535855059,-500.0,0.00019994,2]
[349956636,1737535855068,-1000.0,0.00019994,2]
[349956637,1737535855077,-844.08,0.00019994,2]
[349956638,1737535855087,-500.0,0.00019994,2]
[349956639,1737535855097,-500.0,0.00019994,2]
[349956640,1737535855106,-500.0,0.00019994,2]
[349956641,1737535855116,-2817.94,0.00019994,2]
[349956642,1737535855125,-1195.95,0.00019994,2]
[349956643,1737535855134,-500.0,0.00019994,2]
[349956644,1737535855143,-2298.19,0.00019994,2]
[349956645,1737535855153,-721.13,0.00019994,2]
[349956646,1737535855162,-537.9,0.00019994,2]
[349956647,1737535855171,-1122.6,0.00019994,2]
[349956648,1737535855180,-500.0,0.00019994,2]
[349956649,1737535855189,-1284.0,0.00019994,2]
[349956650,1737535855199,-584.46,0.00019994,2]
[349956651,1737535855208,-793.95,0.00019995,2]
[349956652,1737535855217,-710.25,0.00019995,2]
[349956653,1737535855226,-500.0,0.00019995,2]
[349956654,1737535855234,-500.0,0.00019995,2]
[349956655,1737535855244,-500.0,0.00019995,2]
[349956656,1737535855253,-1448.78,0.00019995,2]
[349956657,1737535855262,-1032.82,0.00019995,2]
[349956658,1737535855271,-1224.48,0.00019995,2]
[349956659,1737535855280,-500.0,0.00019995,2]
[349956660,1737535855290,-565.46,0.00019995,2]
[349956661,1737535855299,-500.0,0.00019995,2]
[349956662,1737535855308,-469.55873766,0.00019995,2]
[349956663,1737535855318,-500.0,0.00019995,2]
[349956664,1737535855327,-500.0,0.00019995,2]
[349956665,1737535855336,-500.0,0.00019995,2]
[349956666,1737535855345,-500.0,0.00019995,2]
[349956667,1737535855355,-500.0,0.00019995,2]
[349956668,1737535855364,-500.0,0.00019995,2]
[349956669,1737535855374,-500.0,0.00019995,2]
[349956670,1737535855383,-168.69,0.00019999,2]
[349956671,1737535855392,-4899.82,0.0002,2]
[349956672,1737535855402,-67807.0,0.0002,3]
[349956673,1737535855411,-12499.99,0.0002,2]
[349956674,1737535855421,-36619.2,0.0002,3]
[349956675,1737535855430,-999.0,0.0002,2]
[349956676,1737535855440,-205.26902049,0.00020011,2]
[349956677,1737535855450,-190.71612267,0.00020067,2]
[349956678,1737535855459,-259387.78694589,0.00020068,2]
[349956679,1737535855468,-626.0,0.00020096,2]
[349956680,1737535855477,-205.26902049,0.00020122,2]
[349956681,1737535855487,-254.37,0.0002014,2]
[349956682,1737535855498,-864.33043042,0.00020196,2]
[349956683,1737535855507,-205.26902049,0.00020233,2]
[349956684,1737535855516,-500.0,0.00020267,2]
[349956685,1737535855648,-687.92,0.00020267,2]
[349956686,1737535855657,-500.0,0.00020267,2]
[349956687,1737535855666,-829.09,0.00020267,2]
[349956688,1737535855676,-500.0,0.00020267,2]
[349956689,1737535855685,-500.0,0.00020267,2]
[349956690,1737535855695,-706.98,0.00020267,2]
[349956691,1737535855704,-524.39,0.00020267,2]
[349956692,1737535855714,-500.0,0.00020267,2]
[349956693,1737535855723,-500.0,0.00020267,2]
[349956694,1737535855732,-555.75,0.00020267,2]
[349956695,1737535855741,-882.85,0.00020267,2]
[349956696,1737535855751,-974.81,0.00020267,2]
[349956697,1737535855760,-500.0,0.00020267,2]
[349956698,1737535855769,-500.0,0.00020267,2]
[349956699,1737535855778,-500.0,0.00020267,2]
[349956700,1737535855788,-500.0,0.00020267,2]
[349956701,1737535855797,-1033.33,0.00020267,2]
[349956702,1737535855807,-881.186028,0.00020267,2]
[349956703,1737535855816,-668.82,0.00020267,2]
[349956704,1737535855826,-584.92,0.00020267,2]
[349956705,1737535855835,-597.75,0.00020267,2]
[349956706,1737535855847,-1383.258647,0.00020267,2]
[349956707,1737535855856,-500.0,0.00020267,2]
[349956708,1737535855866,-500.0,0.00020267,2]
[349956709,1737535855877,-1189.34,0.00020267,2]
[349956710,1737535855887,-500.0,0.00020267,2]
[349956711,1737535855898,-500.0,0.00020267,2]
[349956712,1737535855909,-708.96,0.00020267,2]
[349956713,1737535855919,-664.95,0.00020267,2]
[349956714,1737535855931,-1395.76,0.00020267,2]
[349956715,1737535855940,-567.8,0.00020267,2]
[349956716,1737535855950,-500.0,0.00020267,2]
[349956717,1737535855959,-1026.06,0.00020267,2]
[349956718,1737535855970,-500.0,0.00020267,2]
[349956719,1737535855979,-500.0,0.00020267,2]
[349956720,1737535855989,-553.55,0.00020267,2]
[349956721,1737535855998,-500.0,0.00020267,2]
[349956722,1737535856010,-1399.0,0.00020267,2]
[349956723,1737535856020,-897.03,0.00020267,2]
[349956724,1737535856030,-500.0,0.00020267,2]
[349956725,1737535856040,-880.39,0.00020267,2]
[349956726,1737535856049,-500.0,0.00020267,2]
[349956727,1737535856058,-500.0,0.00020267,2]
[349956728,1737535856068,-500.0,0.00020267,2]
[349956729,1737535856077,-500.0,0.00020267,2]
[349956730,1737535856086,-1082.05,0.00020267,2]
[349956731,1737535856095,-1124.96,0.00020267,2]
[349956732,1737535856105,-500.0,0.00020267,2]
[349956733,1737535856116,-500.0,0.00020267,2]
[349956734,1737535856127,-791.67,0.00020267,2]
[349956735,1737535856136,-659.65,0.00020267,2]
[349956736,1737535856146,-500.0,0.00020267,2]
[349956737,1737535856155,-897.68,0.00020267,2]
[349956738,1737535856166,-1008.18,0.00020267,2]
[349956739,1737535856177,-1914.1,0.00020267,2]
[349956740,1737535856187,-500.0,0.00020267,2]
[349956741,1737535856197,-500.0,0.00020267,2]
[349956742,1737535856207,-805.46,0.00020267,2]
[349956743,1737535856218,-500.0,0.00020267,2]
[349956744,1737535856230,-2511.45,0.00020267,2]
[349956745,1737535856239,-500.0,0.00020267,2]
[349956746,1737535856248,-500.0,0.00020267,2]
[349956747,1737535856258,-1206.52,0.00020267,2]
[349956748,1737535856270,-4007.33,0.00020267,2]
[349956749,1737535856280,-2492.62,0.00020267,2]
[349956750,1737535856290,-1678.2,0.00020267,2]
[349956751,1737535856299,-306.71179406,0.00020267,2]
[349956752,1737535856309,-1512.08,0.00020267,2]
[349956753,1737535856318,-500.0,0.00020267,2]
[349956754,1737535856327,-500.0,0.00020267,2]
[349956755,1737535856336,-956.5,0.00020267,2]
[349956756,1737535856346,-500.0,0.00020267,2]
[349956757,1737535856355,-859.9,0.00020267,2]
[349956758,1737535856365,-564.94,0.00020267,2]
[349956759,1737535856374,-500.0,0.00020267,2]
[349956760,1737535856383,-500.0,0.00020267,2]
[349956761,1737535856393,-790.06,0.00020267,2]
[349956762,1737535856403,-2269.74,0.00020267,2]
[349956763,1737535856413,-500.0,0.00020267,2]
[349956764,1737535856422,-4879.48,0.00020267,2]
[349956765,1737535856432,-500.0,0.00020267,2]
[349956766,1737535856441,-1144.32,0.00020267,2]
[349956767,1737535856451,-500.0,0.00020267,2]
[349956768,1737535856460,-2054.82,0.00020267,2]
[349956769,1737535856470,-827.92,0.00020267,2]
[349956770,1737535856480,-1961.71,0.00020267,2]
[349956771,1737535856490,-500.0,0.00020267,2]
[349956772,1737535856499,-1416.44,0.00020267,2]
[349956773,1737535856508,-3220.53,0.00020267,2]
[349956774,1737535856518,-500.0,0.00020267,2]
[349956775,1737535856527,-500.0,0.00020267,2]
[349956776,1737535856536,-2309.19,0.00020267,2]
[349956777,1737535856546,-1086.97,0.00020267,2]
[349956778,1737535856555,-836.64,0.00020267,2]
[349956779,1737535856564,-1125.48,0.00020267,2]
[349956780,1737535856573,-1355.86,0.00020267,2]
[349956781,1737535856583,-500.0,0.00020267,2]
[349956782,1737535856592,-537.78,0.00020267,2]
[349956783,1737535856601,-644.18,0.00020267,2]
[349956784,1737535856611,-4222.06,0.00020267,2]
[349956785,1737535856620,-1148.64,0.00020267,2]
[349956786,1737535856629,-1996.49,0.00020267,2]
[349956787,1737535856639,-500.0,0.00020267,2]
[349956788,1737535856648,-3033.92,0.00020267,2]
[349956789,1737535856657,-500.0,0.00020267,2]
[349956790,1737535856667,-2532.04,0.00020267,2]
[349956791,1737535856676,-574.92,0.00020267,2]
[349956792,1737535856685,-940.76,0.00020267,2]
[349956793,1737535856694,-500.0,0.00020267,2]
[349956794,1737535856703,-1198.58,0.00020267,2]
[349956795,1737535856713,-1231.92,0.00020267,2]
[349956796,1737535856722,-400.64,0.00020267,2]
[349956797,1737535856731,-1021.16,0.00020267,2]
[349956798,1737535856740,-500.0,0.00020267,2]
[349956799,1737535856749,-850.43,0.00020267,2]
[349956800,1737535856758,-626.58,0.00020267,2]
[349956801,1737535856768,-1522.34,0.00020267,2]
[349956802,1737535856777,-1365.0,0.00020267,2]
[349956803,1737535856787,-603.87,0.00020267,2]
[349956804,1737535856796,-500.0,0.00020267,2]
[349956805,1737535856805,-1288.07,0.00020267,2]
[349956806,1737535856815,-844.42,0.00020267,2]
[349956807,1737535856824,-500.0,0.00020267,2]
[349956808,1737535856833,-566.83,0.00020267,2]
[349956809,1737535856843,-537.66,0.00020267,2]
[349956810,1737535856852,-511.79,0.00020267,2]
[349956811,1737535856861,-913.82,0.00020267,2]
[349956812,1737535856871,-500.0,0.00020267,2]
[349956813,1737535856880,-2700.97,0.00020267,2]
[349956814,1737535856889,-500.0,0.00020267,2]
[349956815,1737535856898,-500.0,0.00020267,2]
[349956816,1737535856907,-500.0,0.00020267,2]
[349956817,1737535856917,-1158.45,0.00020267,2]
[349956818,1737535856931,-500.0,0.00020267,2]
[349956819,1737535856941,-872.83,0.00020267,2]
[349956820,1737535856952,-2209.36,0.00020267,2]
[349956821,1737535856961,-3528.61,0.00020267,2]
[349956822,1737535856972,-773.09,0.00020267,2]
[349956823,1737535856981,-500.0,0.00020267,2]
[349956824,1737535856990,-614.04,0.00020267,2]
[349956825,1737535857000,-1417.55,0.00020267,2]
[349956826,1737535857010,-1067.42,0.00020267,2]
[349956827,1737535857019,-2595.8,0.00020267,2]
[349956828,1737535857028,-633.97,0.00020267,2]
[349956829,1737535857038,-500.0,0.00020267,2]
[349956830,1737535857046,-628.26,0.00020267,2]
[349956831,1737535857056,-1154.33,0.00020267,2]
[349956832,1737535857065,-500.0,0.00020267,2]
[349956833,1737535857074,-500.0,0.00020267,2]
[349956834,1737535857083,-500.0,0.00020267,2]
[349956835,1737535857092,-1232.72,0.00020267,2]
[349956836,1737535857101,-4385.76,0.00020267,2]
[349956837,1737535857111,-851.04,0.00020267,2]
[349956838,1737535857121,-500.0,0.00020267,2]
[349956839,1737535857131,-500.0,0.00020267,2]
[349956840,1737535857140,-1178.01,0.00020267,2]
[349956841,1737535857150,-500.0,0.00020267,2]
[349956842,1737535857162,-500.0,0.00020267,2]
[349956843,1737535857172,-844.74,0.00020267,2]
[349956844,1737535857182,-500.0,0.00020267,2]
[349956845,1737535857191,-500.0,0.00020267,2]
[349956846,1737535857202,-2089.41,0.00020267,2]
[349956847,1737535857211,-577.47,0.00020267,2]
[349956848,1737535857220,-500.0,0.00020267,2]
[349956849,1737535857230,-690.97,0.00020267,2]
[349956850,1737535857240,-500.0,0.00020267,2]
[349956851,1737535857249,-1722.38,0.00020267,2]
[349956852,1737535857259,-1001.69,0.00020267,2]
[349956853,1737535857269,-799.05,0.00020267,2]
[349956854,1737535857279,-1433.52,0.00020267,2]
[349956855,1737535857288,-680.57,0.00020267,2]
[349956856,1737535857297,-866.15,0.00020267,2]
[349956857,1737535857306,-500.0,0.00020267,2]
[349956858,1737535857315,-500.0,0.00020267,2]
[349956859,1737535857324,-525.26,0.00020267,2]
[349956860,1737535857334,-658.51,0.00020267,2]
[349956861,1737535857343,-500.0,0.00020267,2]
[349956862,1737535857353,-1460.47,0.00020267,2]
[349956863,1737535857362,-500.0,0.00020267,2]
[349956864,1737535857371,-1012.24,0.00020267,2]
[349956865,1737535857381,-703.88,0.00020267,2]
[349956866,1737535857391,-500.0,0.00020267,2]
[349956867,1737535857400,-500.0,0.00020267,2]
[349956868,1737535857410,-2713.11,0.00020267,2]
[349956869,1737535857419,-2398.07,0.00020267,2]
[349956870,1737535857428,-508.44,0.00020267,2]
[349956871,1737535857437,-2259.96,0.00020267,2]
[349956872,1737535857448,-500.0,0.00020267,2]
[349956873,1737535857457,-500.0,0.00020267,2]
[349956874,1737535857467,-1542.11,0.00020267,2]
[349956875,1737535857477,-500.0,0.00020267,2]
[349956876,1737535857487,-1046.31,0.00020267,2]
[349956877,1737535857496,-876.07,0.00020267,2]
[349956878,1737535857507,-2654.27,0.00020267,2]
[349956879,1737535857516,-500.0,0.00020267,2]
[349956880,1737535857526,-588.37,0.00020267,2]
[349956881,1737535857535,-1263.25,0.00020267,2]
[349956882,1737535857545,-588.54,0.00020267,2]
[349956883,1737535857554,-623.1,0.00020268,2]
[349956884,1737535857563,-500.0,0.00020268,2]
[349956885,1737535857573,-500.0,0.00020268,2]
[349956886,1737535857582,-500.0,0.00020268,2]
[349956887,1737535857591,-500.0,0.00020268,2]
[349956888,1737535857600,-500.0,0.00020268,2]
[349956889,1737535857610,-500.0,0.00020268,2]
[349956890,1737535857619,-906.12,0.00020268,2]
[349956891,1737535857629,-500.0,0.00020268,2]
[349956892,1737535857638,-500.0,0.00020268,2]
[349956893,1737535857647,-500.0,0.00020268,2]
[349956894,1737535857656,-557.75,0.00020268,2]
[349956895,1737535857665,-500.0,0.00020268,2]
[349956896,1737535857674,-500.0,0.00020268,2]
[349956897,1737535857684,-500.0,0.00020268,2]
[349956898,1737535857694,-500.0,0.00020268,2]
[349956899,1737535857703,-523.97,0.00020268,2]
[349956900,1737535857712,-500.0,0.00020268,2]
[349956901,1737535857722,-684.22,0.00020268,2]
[349956902,1737535857731,-500.0,0.00020268,2]
[349956903,1737535857741,-500.76,0.00020268,2]
[349956904,1737535857750,-166.6,0.00020268,2]
[349956905,1737535857759,-500.0,0.00020268,2]
[349956906,1737535857768,-624.98147448,0.00020268,2]
[349956907,1737535857777,-349.4232933,0.00020268,2]
[349956908,1737535857786,-500.0,0.00020268,2]
[349956909,1737535857795,-500.0,0.00020268,2]
[349956910,1737535857805,-364.81074153,0.00020268,2]
[349956911,1737535857814,-500.0,0.00020268,2]
[349956912,1737535857824,-500.0,0.00020268,2]
[349956913,1737535857833,-500.0,0.00020268,2]
[349956914,1737535857842,-500.0,0.00020268,2]
[349956915,1737535857851,-500.0,0.00020268,2]
[349956916,1737535857860,-500.0,0.00020268,2]
[349956917,1737535857869,-891.46,0.00020268,2]
[349956918,1737535857879,-500.0,0.00020268,2]
[349956919,1737535858007,-626.77,0.00020268,2]
[349956920,1737535858018,-974.67,0.00020268,2]
[349956921,1737535858027,-500.0,0.00020268,2]
[349956922,1737535858036,-500.0,0.00020268,2]
[349956923,1737535858045,-667.94,0.00020268,2]
[349956924,1737535858054,-1171.25,0.00020268,2]
[349956925,1737535858063,-720.08,0.00020268,2]
[349956926,1737535858072,-1121.27,0.00020268,2]
[349956927,1737535858081,-500.0,0.00020268,2]
[349956928,1737535858090,-500.0,0.00020268,2]
[349956929,1737535858099,-761.43,0.00020268,2]
[349956930,1737535858108,-500.0,0.00020268,2]
[349956931,1737535858117,-885.44,0.00020268,2]
[349956932,1737535858127,-593.11,0.00020268,2]
[349956933,1737535858136,-810.91,0.00020268,2]
[349956934,1737535858146,-500.0,0.00020268,2]
[349956935,1737535858157,-797.59,0.00020268,2]
[349956936,1737535858167,-500.0,0.00020268,2]
[349956937,1737535858178,-500.0,0.00020268,2]
[349956938,1737535858189,-607.39,0.00020268,2]
[349956939,1737535858199,-500.0,0.00020268,2]
[349956940,1737535858209,-500.0,0.00020268,2]
[349956941,1737535858218,-500.0,0.00020268,2]
[349956942,1737535858227,-500.0,0.00020268,2]
[349956943,1737535858237,-669.28,0.00020268,2]
[349956944,1737535858246,-500.0,0.00020268,2]
[349956945,1737535858255,-500.0,0.00020268,2]
[349956946,1737535858264,-500.0,0.00020268,2]
[349956947,1737535858274,-500.0,0.00020268,2]
[349956948,1737535858283,-500.0,0.00020268,2]
[349956949,1737535858293,-500.0,0.00020268,2]
[349956950,1737535858302,-500.0,0.00020268,2]
[349956951,1737535858311,-500.0,0.00020268,2]
[349956952,1737535858320,-500.0,0.00020268,2]
[349956953,1737535858330,-500.0,0.00020268,2]
[349956954,1737535858339,-822.84,0.00020268,2]
[349956955,1737535858349,-984.18,0.00020268,2]
[349956956,1737535858358,-1080.22,0.00020268,2]
[349956957,1737535858368,-223.75000461,0.00020268,2]
[349956958,1737535858377,-151.0,0.00020268,2]
[349956959,1737535858386,-500.0,0.00020268,2]
[349956960,1737535858395,-500.0,0.00020268,2]
[349956961,1737535858404,-500.0,0.00020268,2]
[349956962,1737535858414,-500.0,0.00020268,2]
[349956963,1737535858424,-500.0,0.00020268,2]
[349956964,1737535858433,-500.0,0.00020268,2]
[349956965,1737535858443,-502.19,0.00020268,2]
[349956966,1737535858453,-500.0,0.00020268,2]
[349956967,1737535858464,-500.0,0.00020268,2]
[349956968,1737535858473,-543.73,0.00020268,2]
[349956969,1737535858483,-500.0,0.00020268,2]
[349956970,1737535858492,-500.0,0.00020268,2]
[349956971,1737535858501,-1225.68,0.00020268,2]
[349956972,1737535858511,-1080.05,0.00020268,2]
[349956973,1737535858520,-500.0,0.00020268,2]
[349956974,1737535858530,-1315.5,0.00020268,2]
[349956975,1737535858539,-5326.32,0.00020268,2]
[349956976,1737535858549,-1134.22,0.00020268,2]
[349956977,1737535858558,-151.0,0.00020268,2]
[349956978,1737535858567,-8872.35,0.00020268,2]
[349956979,1737535858577,-548.7,0.00020268,2]
[349956980,1737535858587,-500.0,0.00020268,2]
[349956981,1737535858596,-1108.55,0.00020268,2]
[349956982,1737535858606,-500.0,0.00020268,2]
[349956983,1737535858615,-500.0,0.00020268,2]
[349956984,1737535858625,-500.0,0.00020268,2]
[349956985,1737535858635,-151.0,0.00020268,2]
[349956986,1737535858644,-533.36,0.00020268,2]
[349956987,1737535858653,-879.16,0.00020268,2]
[349956988,1737535858662,-666.0,0.00020268,2]
[349956989,1737535858672,-500.0,0.00020268,2]
[349956990,1737535858680,-2887.3,0.00020268,2]
[349956991,1737535858689,-500.0,0.00020268,2]
[349956992,1737535858700,-500.0,0.00020268,2]
[349956993,1737535858710,-1192.26,0.00020268,2]
[349956994,1737535858719,-500.0,0.00020268,2]
[349956995,1737535858728,-1613.65,0.00020268,2]
[349956996,1737535858737,-840.93,0.00020268,2]
[349956997,1737535858746,-500.0,0.00020268,2]
[349956998,1737535858755,-1815.41,0.00020268,2]
[349956999,1737535858765,-627.34,0.00020268,2]
[349957000,1737535858774,-552.73,0.00020268,2]
[349957001,1737535858783,-500.0,0.00020268,2]
[349957002,1737535858793,-1000.0,0.00020268,2]
[349957003,1737535858805,-168.074362,0.00020268,2]
[349957004,1737535858814,-168.074362,0.00020268,2]
[349957005,1737535858823,-844.08,0.00020268,2]
[349957006,1737535858832,-500.0,0.00020268,2]
[349957007,1737535858841,-500.0,0.00020268,2]
[349957008,1737535858852,-500.0,0.00020268,2]
[349957009,1737535858861,-2817.94,0.00020268,2]
[349957010,1737535858870,-1195.95,0.00020268,2]
[349957011,1737535858879,-500.0,0.00020268,2]
[349957012,1737535858888,-2298.19,0.00020268,2]
[349957013,1737535858897,-721.13,0.00020268,2]
[349957014,1737535858906,-537.9,0.00020268,2]
[349957015,1737535858915,-1122.6,0.00020268,2]
[349957016,1737535858925,-500.0,0.00020268,2]
[349957017,1737535858938,-1284.0,0.00020268,2]
[349957018,1737535858950,-584.46,0.00020268,2]
[349957019,1737535858959,-793.95,0.00020269,2]
[349957020,1737535858968,-710.25,0.00020269,2]
[349957021,1737535858978,-500.0,0.00020269,2]
[349957022,1737535858988,-500.0,0.00020269,2]
[349957023,1737535858997,-500.0,0.00020269,2]
[349957024,1737535859008,-1448.78,0.00020269,2]
[349957025,1737535859017,-1032.82,0.00020269,2]
[349957026,1737535859026,-1224.48,0.00020269,2]
[349957027,1737535859035,-515.34415788,0.00020269,2]
[349957028,1737535859045,-565.46,0.00020269,2]
[349957029,1737535859054,-500.0,0.00020269,2]
[349957030,1737535859063,-500.0,0.00020269,2]
[349957031,1737535859072,-500.0,0.00020269,2]
[349957032,1737535859081,-500.0,0.00020269,2]
[349957033,1737535859090,-512.22749661,0.00020269,2]
[349957034,1737535859100,-500.0,0.00020269,2]
[349957035,1737535859109,-500.0,0.00020269,2]
[349957036,1737535859119,-500.0,0.00020269,2]
[349957037,1737535859129,-151.0,0.00020269,2]
[349957038,1737535859138,-250.0,0.000203,2]
[349957039,1737535859147,-250.0,0.000203,2]
[349957040,1737535859156,-425.8,0.000203,2]
[349957041,1737535859166,-238.23527525,0.00020321,2]
[349957042,1737535859175,-205.26902049,0.00020344,2]
[349957043,1737535859184,-209.19,0.00020404,2]
[349957044,1737535859196,-205.26902049,0.00020456,2]
[349957045,1737535859205,-864.33043042,0.0002048,2]
[349957046,1737535859215,-432.61797383,0.0002048,2]
[349957047,1737535859224,-567.0,0.00020505,2]
[349957048,1737535859233,-209.349,0.00020505,2]
[349957049,1737535859242,-3903.0,0.00020505,2]
[349957050,1737535859251,-150.0,0.00020505,2]
[349957051,1737535859260,-1136.284,0.00020505,2]
[349957052,1737535859270,-500.0,0.00020521,2]
[349957053,1737535859279,-250.0,0.00020521,2]
[349957054,1737535859288,-500.0,0.0002054,2]
[349957055,1737535859297,-500.0,0.00020541,2]
[349957056,1737535859306,-687.92,0.00020541,2]
[349957057,1737535859316,-406.3195136,0.00020541,2]
[349957058,1737535859325,-829.09,0.00020541,2]
[349957059,1737535859335,-500.0,0.00020541,2]
[349957060,1737535859344,-500.0,0.00020541,2]
[349957061,1737535859354,-706.98,0.00020541,2]
[349957062,1737535859363,-524.39,0.00020541,2]
[349957063,1737535859372,-500.0,0.00020541,2]
[349957064,1737535859381,-500.0,0.00020541,2]
[349957065,1737535859390,-555.75,0.00020541,2]
[349957066,1737535859399,-882.85,0.00020541,2]
[349957067,1737535859408,-974.81,0.00020541,2]
[349957068,1737535859418,-500.0,0.00020541,2]
[349957069,1737535859426,-500.0,0.00020541,2]
[349957070,1737535859435,-419.0071705,0.00020541,2]
[349957071,1737535859446,-529.43230261,0.00020541,2]
[349957072,1737535859456,-1033.33,0.00020541,2]
[349957073,1737535859465,-881.186028,0.00020541,2]
[349957074,1737535859475,-668.82,0.00020541,2]
[349957075,1737535859485,-584.92,0.00020541,2]
[349957076,1737535859495,-597.75,0.00020541,2]
[349957077,1737535859504,-1383.258647,0.00020541,2]
[349957078,1737535859514,-500.0,0.00020541,2]
[349957079,1737535859524,-500.0,0.00020541,2]
[349957080,1737535859533,-1189.34,0.00020541,2]
[349957081,1737535859542,-500.0,0.00020541,2]
[349957082,1737535859552,-500.0,0.00020541,2]
[349957083,1737535859561,-708.96,0.00020541,2]
[349957084,1737535859571,-664.95,0.00020541,2]
[349957085,1737535859580,-1395.76,0.00020541,2]
[349957086,1737535859589,-567.8,0.00020541,2]
[349957087,1737535859598,-500.0,0.00020541,2]
[349957088,1737535859609,-1026.06,0.00020541,2]
[349957089,1737535859619,-500.0,0.00020541,2]
[349957090,1737535859629,-500.0,0.00020541,2]
[349957091,1737535859638,-553.55,0.00020541,2]
[349957092,1737535859647,-500.0,0.00020541,2]
[349957093,1737535859657,-1399.0,0.00020541,2]
[349957094,1737535859666,-897.03,0.00020541,2]
[349957095,1737535859675,-500.0,0.00020541,2]
[349957096,1737535859685,-880.39,0.00020541,2]
[349957097,1737535859696,-151.0,0.00020541,2]
[349957098,1737535859706,-500.0,0.00020541,2]
[349957099,1737535859716,-511.74381071,0.00020541,2]
[349957100,1737535859726,-1082.05,0.00020541,2]
[349957101,1737535859736,-1124.96,0.00020541,2]
[349957102,1737535859746,-500.0,0.00020541,2]
[349957103,1737535859756,-500.0,0.00020541,2]
[349957104,1737535859765,-791.67,0.00020541,2]
[349957105,1737535859775,-659.65,0.00020541,2]
[349957106,1737535859784,-897.68,0.00020541,2]
[349957107,1737535859794,-1008.18,0.00020541,2]
[349957108,1737535859804,-1914.1,0.00020541,2]
[349957109,1737535859813,-500.0,0.00020541,2]
[349957110,1737535859822,-500.0,0.00020541,2]
[349957111,1737535859831,-805.46,0.00020541,2]
[349957112,1737535859841,-2511.45,0.00020541,2]
[349957113,1737535859850,-500.0,0.00020541,2]
[349957114,1737535859860,-500.0,0.00020541,2]
[349957115,1737535859870,-1206.52,0.00020541,2]
[349957116,1737535859879,-4007.33,0.00020541,2]
[349957117,1737535859888,-2492.62,0.00020541,2]
[349957118,1737535859898,-1678.2,0.00020541,2]
[349957119,1737535859908,-153.397071,0.00020541,2]
[349957120,1737535859917,-1512.08,0.00020541,2]
[349957121,1737535859928,-500.0,0.00020541,2]
[349957122,1737535859939,-956.5,0.00020541,2]
[349957123,1737535859951,-500.0,0.00020541,2]
[349957124,1737535859960,-500.0,0.00020541,2]